bitfinex-derivatives/quotes_SOLF0:USTF0_20250114
["timestamp","ask_amount","ask_price","bid_price","bid_amount"]
[1736895191476,7.86805129,188.58,188.55,2.6526]
[1736895191981,7.86805129,188.58,188.49,11.04695129]
[1736895192186,7.86805129,188.58,188.56,2.6525]
[1736895197388,5.32,188.59,188.57,2.6524]
[1736895198387,7.86805129,188.6,188.57,2.6524]
[1736895198690,13.18805129,188.6,188.57,2.6524]
[1736895199386,5.32,188.61,188.57,2.6524]
[1736895199590,7.86805129,188.6,188.57,2.6524]
[1736895200089,2.6515,188.64,188.59,2.6521]
[1736895200287,5.32,188.63,188.59,2.6521]
[1736895200485,13.18805129,188.63,188.55,7.86805129]
[1736895200687,5.32,188.63,188.62,2.6517]
[1736895201091,13.18805129,188.65,188.62,2.6517]
[1736895202187,7.86805129,188.65,188.63,2.6515]
[1736895204188,5.32,188.66,188.63,2.6515]
[1736895204189,2.651,188.67,188.63,2.6515]
[1736895204388,7.86805129,188.66,188.63,2.6515]
[1736895204786,5.32,188.68,188.58,9.52615129]
[1736895205091,7.86805129,188.66,188.64,2.6514]
[1736895205889,7.86805129,188.66,188.63,2.6515]
[1736895207697,7.86805129,188.66,188.65,2.6513]
[1736895207901,7.86805129,188.66,188.59,1.6319]
[1736895208293,2.6509,188.68,188.59,1.6319]
[1736895208499,7.86805129,188.66,188.59,1.6319]
[1736895208794,7.86805129,188.68,188.6,7.86805129]
[1736895208992,7.86805129,188.68,188.64,2.6513]
[1736895209402,2.6508,188.69,188.64,2.6513]
[1736895209603,7.86805129,188.69,188.66,2.6511]
[1736895210598,99.32,188.81,188.6,1.5523]
[1736895210796,7.86805129,188.72,188.64,7.86805129]
[1736895210997,7.86805129,188.72,188.65,1.7015]
[1736895211195,2.6501,188.74,188.67,2.651]
[1736895211493,7.86805129,188.72,188.65,1.7015]
[1736895212902,7.86805129,188.72,188.68,2.6507]
[1736895216302,7.86805129,188.72,188.65,1.7015]
[1736895216504,7.86805129,188.72,188.69,2.6506]
[1736895216704,7.86805129,188.72,188.65,1.7015]
[1736895217401,2.65,188.74,188.65,1.7015]
[1736895217597,7.86805129,188.72,188.65,1.7015]
[1736895218006,7.86805129,188.72,188.69,2.6506]
[1736895218406,2.65,188.74,188.65,1.7015]
[1736895218607,7.86805129,188.72,188.66,7.86805129]
[1736895218808,7.86805129,188.72,188.7,2.6505]
[1736895221909,5.42,188.75,188.66,7.86805129]
[1736895222113,7.86805129,188.73,188.71,2.6504]
[1736895224010,2.6509,188.68,188.6,1.5523]
[1736895224205,7.86805129,188.69,188.6,1.5523]
[1736895224411,7.86805129,188.69,188.61,7.86805129]
[1736895224610,7.86805129,188.67,188.57,1.6097]
[1736895224808,7.86805129,188.67,188.59,9.49995129]
[1736895225112,2.6512,188.66,188.62,2.6517]
[1736895225407,7.86805129,188.67,188.59,9.49995129]
[1736895225612,7.86805129,188.67,188.6,7.86805129]
[1736895226311,2.6512,188.66,188.62,2.6516]
[1736895226510,7.86805129,188.67,188.6,7.86805129]
[1736895226712,5.42,188.68,188.6,7.86805129]
[1736895226914,5.42,188.68,188.65,2.6512]
[1736895228816,5.42,188.68,188.61,7.86805129]
[1736895229010,5.42,188.68,188.66,2.6511]
[1736895229412,7.86805129,188.69,188.61,7.86805129]
[1736895229615,7.86805129,188.69,188.68,2.6508]
[1736895230410,5.42,188.71,188.7,2.6506]
[1736895230612,13.28805129,188.71,188.7,2.6506]
[1736895234619,7.86805129,188.71,188.7,2.6506]
[1736895240024,5.42,188.74,188.65,7.86805129]
[1736895240225,7.86805129,188.73,188.72,2.6503]
[1736895242526,5.42,188.74,188.72,2.6503]
[1736895242726,7.86805129,188.73,188.72,2.6503]
[1736895261542,13.24805129,188.75,188.74,2.65]
[1736895262641,7.86805129,188.75,188.74,2.65]
[1736895264043,5.38,188.77,188.75,2.6498]
[1736895264241,7.86805129,188.76,188.75,2.6498]
[1736895268452,7.86805129,188.77,188.76,2.6497]
[1736895269345,5.38,188.8,188.7,9.56545129]
[1736895269543,7.86805129,188.78,188.77,2.6496]
[1736895270342,5.36,188.8,188.71,1.6239]
[1736895270544,2.6491,188.81,188.78,2.6494]
[1736895270747,5.36,188.8,188.78,2.6494]
[1736895271753,5.36,188.8,188.71,1.6239]
[1736895272052,7.86805129,188.78,188.77,2.6495]
[1736895274452,8.0092,188.8,188.7,9.56545129]
[1736895274754,7.86805129,188.79,188.7,9.56545129]
[1736895275757,10.51745129,188.79,188.76,2.6497]
[1736895276857,7.86805129,188.77,188.76,2.6497]
[1736895277954,7.86805129,188.77,188.72,2.6503]
[1736895278158,7.86805129,188.77,188.7,9.56545129]
[1736895278958,10.51775129,188.77,188.74,2.6499]
[1736895280860,7.86805129,188.77,188.75,2.6498]
[1736895281057,2.6495,188.78,188.75,2.6498]
[1736895281260,7.86805129,188.77,188.75,2.6498]
[1736895281761,10.51765129,188.77,188.75,2.6498]
[1736895282561,2.6496,188.77,188.75,2.6498]
[1736895282762,10.51765129,188.77,188.75,2.6498]
[1736895284668,7.86805129,188.77,188.75,2.6498]
[1736895285569,2.6498,188.76,188.7,1.6974]
[1736895285773,7.86805129,188.75,188.7,1.6974]
[1736895286067,7.86805129,188.73,188.7,1.6974]
[1736895286469,7.86805129,188.73,188.68,2.6509]
[1736895286671,7.86805129,188.73,188.66,9.47325129]
[1736895287872,7.86805129,188.73,188.71,2.6503]
[1736895288572,7.86805129,188.73,188.66,9.47325129]
[1736895288766,7.86805129,188.73,188.66,1.6052]
[1736895289166,7.86805129,188.71,188.66,1.6052]
[1736895289377,2.6506,188.7,188.67,2.651]
[1736895290474,7.86805129,188.69,188.66,2.6511]
[1736895290677,10.51885129,188.69,188.54,245.18873288]
[1736895290868,10.51885129,188.69,188.65,2.6512]
[1736895291175,10.51885129,188.69,188.62,7.86805129]
[1736895292574,10.51885129,188.69,188.65,2.6512]
[1736895293375,7.86805129,188.69,188.65,2.6512]
[1736895293674,5.38,188.71,188.64,2.6514]
[1736895293675,7.86805129,188.67,188.64,2.6514]
[1736895294471,10.51905129,188.67,188.64,2.6514]
[1736895297676,10.51905129,188.67,188.63,2.6515]
[1736895300975,2.6512,188.66,188.62,2.6517]
[1736895301182,7.86805129,188.65,188.62,2.6517]
[1736895301680,10.51935129,188.65,188.62,2.6517]
[1736895303779,10.51935129,188.65,188.6,56.69469461]
[1736895304080,7.86805129,188.65,188.63,2.6515]
[1736895304385,7.86805129,188.68,188.64,2.6513]
[1736895304584,2.6511,188.67,188.64,2.6513]
[1736895305082,2.6511,188.67,188.65,2.6513]
[1736895305879,10.51895129,188.68,188.65,2.6513]
[1736895306084,5.38,188.69,188.66,2.6511]
[1736895306277,7.86805129,188.69,188.61,7.86805129]
[1736895306479,7.86805129,188.69,188.63,7.86805129]
[1736895306878,195.0,188.7,188.67,2.651]
[1736895307183,202.86805129,188.7,188.63,7.86805129]
[1736895307379,195.0,188.7,188.69,2.6507]
[1736895309793,4.2229,188.76,188.67,7.86805129]
[1736895309978,7.86805129,188.76,188.69,7.86805129]
[1736895310689,7.86805129,188.78,188.69,7.86805129]
[1736895311284,7.86805129,188.78,188.71,7.86805129]
[1736895313088,8.0492,188.8,188.75,2.6499]
[1736895313288,7.86805129,188.78,188.75,2.6499]
[1736895319796,5.4,188.8,188.71,7.86805129]
[1736895319998,5.4,188.81,188.73,7.86805129]
[1736895320199,7.86805129,188.8,188.73,7.86805129]
[1736895320397,5.4,188.83,188.73,7.86805129]
[1736895320598,7.86805129,188.8,188.79,2.6493]
[1736895321299,5.4,188.83,188.81,2.649]
[1736895321502,7.86805129,188.82,188.81,2.649]
[1736895322202,7.86805129,188.82,188.73,7.86805129]
[1736895323199,7.86805129,188.82,188.79,2.6492]
[1736895326300,5.4,188.84,188.73,7.86805129]
[1736895326503,7.86805129,188.81,188.8,2.6491]
[1736895333001,8.0688,188.83,188.8,2.6491]
[1736895333201,7.86805129,188.81,188.8,2.6491]
[1736895335998,7.86805129,188.83,188.81,2.6489]
[1736895340408,2.6487,188.84,188.81,2.6489]
[1736895340809,10.51675129,188.84,188.81,2.6489]
[1736895341412,248.37855902,188.95,188.8,7.86805129]
[1736895341612,7.86805129,188.87,188.84,2.6485]
[1736895342208,248.37855902,188.95,188.85,2.6483]
[1736895342209,2.648,188.89,188.85,2.6483]
[1736895342412,7.86805129,188.87,188.85,2.6483]
[1736895343904,5.4,188.89,188.8,7.86805129]
[1736895344112,7.86805129,188.87,188.8,7.86805129]
[1736895344315,2.6486,188.85,188.79,7.86805129]
[1736895346112,2.6486,188.85,188.82,2.6489]
[1736895348314,10.51665129,188.85,188.82,2.6489]
[1736895351410,5.4,188.89,188.83,2.6486]
[1736895351411,2.6484,188.86,188.83,2.6486]
[1736895351610,7.86805129,188.85,188.83,2.6486]
[1736895354626,10.51655129,188.85,188.83,2.6486]
[1736895360125,7.86805129,188.85,188.84,2.6486]
[1736895360425,7.86805129,188.85,188.79,7.86805129]
[1736895361129,7.86805129,188.85,188.83,2.6487]
[1736895363822,7.86805129,188.85,188.77,57.03907468]
[1736895363823,2.6494,188.79,188.75,2.6499]
[1736895364028,7.86805129,188.76,188.68,1.575]
[1736895364229,7.86805129,188.76,188.69,66.24754444]
[1736895364431,7.86805129,188.76,188.74,2.6499]
[1736895364728,7.86805129,188.76,188.69,66.24754444]
[1736895364928,7.86805129,188.76,188.7,5.32020819]
[1736895365325,7.86805129,188.76,188.73,2.6501]
[1736895366230,7.86805129,188.74,188.67,1.575]
[1736895366432,7.86805129,188.72,188.67,1.575]
[1736895366834,7.86805129,188.72,188.66,7.86805129]
[1736895367223,7.86805129,188.72,188.67,2.6509]
[1736895367428,7.86805129,188.72,188.66,7.86805129]
[1736895367832,7.86805129,188.72,188.64,57.55722431]
[1736895368028,7.86805129,188.72,188.69,2.6506]
[1736895369127,7.86805129,188.72,188.7,2.6506]
[1736895369332,13.24805129,188.72,188.7,2.6506]
[1736895370832,15.89835129,188.72,188.68,2.6507]
[1736895372233,7.86805129,188.71,188.68,2.6507]
[1736895372533,8.0303,188.72,188.69,2.6507]
[1736895372836,7.86805129,188.71,188.64,57.55722431]
[1736895373032,7.86805129,188.69,188.66,2.651]
[1736895376637,7.86805129,188.69,188.64,57.55722431]
[1736895376837,7.86805129,188.69,188.67,2.651]
[1736895377739,7.86805129,188.7,188.67,2.651]
[1736895380342,2.6503,188.72,188.68,2.6508]
[1736895380542,7.86805129,188.7,188.68,2.6508]
[1736895384546,13.22805129,188.71,188.63,9.52385129]
[1736895385251,13.22805129,188.71,188.7,2.6506]
[1736895385449,195.0,188.8,188.67,7.86805129]
[1736895385752,7.86805129,188.75,188.67,7.86805129]
[1736895385949,5.36,188.79,188.69,7.86805129]
[1736895386145,7.86805129,188.76,188.69,7.86805129]
[1736895386741,7.86805129,188.76,188.75,2.6498]
[1736895387146,7.86805129,188.76,188.74,2.65]
[1736895388441,13.22805129,188.77,188.76,2.6497]
[1736895390146,5.36,188.77,188.76,2.6497]
[1736895390352,7.86805129,188.78,188.77,2.6496]
[1736895400058,7.86805129,188.8,188.79,2.6492]
[1736895401359,5.36,188.81,188.72,9.54145129]
[1736895401658,5.36,188.81,188.8,2.6492]
[1736895403359,8.0088,188.83,188.8,2.6492]
[1736895403555,7.86805129,188.81,188.8,2.6492]
[1736895410365,5.36,188.83,188.81,2.6489]
[1736895410566,7.86805129,188.82,188.81,2.6489]
[1736895413365,5.36,188.83,188.82,2.6489]
[1736895413563,13.22805129,188.83,188.82,2.6489]
[1736895415066,7.86805129,188.83,188.82,2.6489]
[1736895416470,7.86805129,188.83,188.74,7.86805129]
[1736895416763,7.86805129,188.83,188.81,2.649]
[1736895423565,7.9886,188.84,188.81,2.649]
[1736895423870,7.86805129,188.82,188.81,2.649]
[1736895426375,5.34,188.84,188.76,1.6839]
[1736895426669,5.34,188.84,188.82,2.6488]
[1736895427368,7.9886,188.84,188.82,2.6488]
[1736895427568,7.86805129,188.83,188.82,2.6488]
[1736895428362,7.86805129,188.83,188.81,2.649]
[1736895429867,2.6492,188.81,188.78,2.6493]
[1736895430063,7.86805129,188.8,188.78,2.6493]
[1736895436173,2.6492,188.81,188.78,2.6493]
[1736895436373,7.86805129,188.8,188.78,2.6493]
[1736895439871,2.6492,188.81,188.78,2.6493]
[1736895440073,7.86805129,188.8,188.79,2.6493]
[1736895440273,5.34,188.84,188.79,2.6493]
[1736895440474,7.86805129,188.81,188.73,7.86805129]
[1736895440675,2.6489,188.83,188.73,7.86805129]
[1736895440879,7.86805129,188.82,188.73,7.86805129]
[1736895441685,2.6489,188.83,188.79,2.6492]
[1736895441879,7.86805129,188.82,188.79,2.6492]
[1736895445379,7.86805129,188.8,188.79,2.6492]
[1736895448590,5.32,188.81,188.79,2.6492]
[1736895449487,7.86805129,188.82,188.75,7.86805129]
[1736895450889,7.86805129,188.82,188.8,2.6491]
[1736895459192,7.86805129,188.82,188.75,7.86805129]
[1736895459396,7.86805129,188.82,188.81,2.649]
[1736895461195,10.51695129,188.82,188.79,2.6492]
[1736895461392,7.86805129,188.79,188.71,51.514396]
[1736895461587,7.86805129,188.77,188.71,51.514396]
[1736895461997,7.86805129,188.75,188.72,2.6502]
[1736895462196,7.86805129,188.73,188.69,5.02160461]
[1736895462901,7.86805129,188.71,188.69,5.02160461]
[1736895463103,10.51855129,188.71,188.67,2.6509]
[1736895463295,7.86805129,188.69,188.65,29.18974657]
[1736895463497,7.86805129,188.69,188.63,53.1288707]
[1736895463695,7.86805129,188.69,188.65,2.6512]
[1736895464503,7.86805129,188.69,188.63,53.1288707]
[1736895464703,7.86805129,188.69,188.66,2.6511]
[1736895465601,2.6507,188.7,188.66,2.6511]
[1736895465801,10.51875129,188.7,188.66,2.6511]
[1736895468801,7.86805129,188.68,188.55,5.3053]
[1736895469000,10.51895129,188.68,188.64,2.6513]
[1736895469897,10.51895129,188.68,188.65,2.6513]
[1736895470608,10.51895129,188.68,188.64,2.6514]
[1736895470807,7.86805129,188.66,188.64,2.6514]
[1736895475814,7.86805129,188.66,188.59,7.86805129]
[1736895476015,7.86805129,188.66,188.65,2.6513]
[1736895484615,2.6509,188.68,188.65,2.6513]
[1736895484811,2.6506,188.7,188.67,2.651]
[1736895485017,7.86805129,188.69,188.63,7.86805129]
[1736895485217,7.86805129,188.71,188.65,7.86805129]
[1736895486117,7.86805129,188.71,188.7,2.6506]
[1736895489327,5.34,188.72,188.7,2.6506]
[1736895489528,7.86805129,188.71,188.7,2.6506]
[1736895491822,5.34,188.72,188.7,2.6506]
[1736895492121,7.86805129,188.71,188.7,2.6506]
[1736895502530,7.86805129,188.71,188.63,3.1483]
[1736895502729,10.51845129,188.71,188.68,2.6508]
[1736895504435,2.6504,188.71,188.69,2.6506]
[1736895504634,10.51845129,188.71,188.69,2.6506]
[1736895505934,7.86805129,188.71,188.69,2.6506]
[1736895506427,7.9702,188.73,188.7,2.6505]
[1736895506634,7.86805129,188.71,188.7,2.6505]
[1736895518145,7.9702,188.73,188.7,2.6505]
[1736895518445,5.32,188.73,188.71,2.6503]
[1736895518638,2.6501,188.74,188.71,2.6503]
[1736895518639,7.86805129,188.72,188.71,2.6503]
[1736895520039,7.86805129,188.72,188.7,2.6505]
[1736895522639,2.6502,188.73,188.7,2.6505]
[1736895523048,7.86805129,188.72,188.7,2.6505]
[1736895523247,10.51845129,188.72,188.69,2.6507]
[1736895525353,2.6502,188.73,188.7,2.6505]
[1736895525541,7.86805129,188.72,188.7,2.6505]
[1736895527552,2.6502,188.73,188.7,2.6505]
[1736895527748,7.86805129,188.72,188.7,2.6505]
[1736895529455,10.51835129,188.72,188.7,2.6505]
[1736895533151,7.86805129,188.72,188.7,2.6505]
[1736895533359,5.3,188.76,188.65,7.86805129]
[1736895533657,5.3,188.76,188.63,8.4515]
[1736895533658,7.86805129,188.76,188.69,7.86805129]
[1736895533853,6.9728,188.81,188.71,7.86805129]
[1736895534159,7.86805129,188.79,188.73,7.86805129]
[1736895534653,7.86805129,188.81,188.79,2.6492]
[1736895534861,7.86805129,188.81,188.75,7.86805129]
[1736895535158,7.86805129,188.84,188.77,7.86805129]
[1736895535351,7.86805129,188.84,188.78,1.5401]
[1736895536059,7.86805129,188.84,188.78,3.2443]
[1736895536560,7.86805129,188.84,188.82,2.6488]
[1736895537348,1.6728,188.88,188.78,3.2443]
[1736895537657,7.86805129,188.85,188.84,2.6485]
[1736895539658,7.86805129,188.85,188.81,2.6489]
[1736895539861,7.86805129,188.83,188.81,2.6489]
[1736895540157,7.86805129,188.83,188.75,5.20900064]
[1736895540357,7.86805129,188.77,188.75,5.20900064]
[1736895540750,10.51765129,188.77,188.73,2.6501]
[1736895540954,7.86805129,188.74,188.73,2.6501]
[1736895541354,7.86805129,188.74,188.68,7.86805129]
[1736895541549,1.5405,188.79,188.67,1.5518]
[1736895541754,7.86805129,188.72,188.67,1.5518]
[1736895542454,7.86805129,188.72,188.69,2.6507]
[1736895542653,7.86805129,188.7,188.66,1.7065]
[1736895542850,7.86805129,188.7,188.63,9.40505129]
[1736895543258,7.86805129,188.7,188.67,2.6509]
[1736895543458,7.86805129,188.7,188.63,9.40505129]
[1736895543850,7.86805129,188.68,188.63,1.537]
[1736895544360,7.86805129,188.68,188.66,2.6511]
[1736895544562,7.86805129,188.68,188.63,1.537]
[1736895544760,7.86805129,188.66,188.62,53.17335269]
[1736895546058,7.86805129,188.66,188.63,2.6515]
[1736895546262,7.86805129,188.64,188.63,2.6515]
[1736895546758,7.86805129,188.64,188.59,2.6521]
[1736895546964,7.86805129,188.62,188.57,1.6363]
[1736895547962,7.86805129,188.62,188.6,2.6519]
[1736895548363,7.86805129,188.62,188.56,5.02531708]
[1736895548568,7.86805129,188.6,188.58,2.6522]
[1736895549763,7.86805129,188.6,188.55,54.45515559]
[1736895550070,7.86805129,188.58,188.56,2.6524]
[1736895550470,7.86805129,188.58,188.57,2.6523]
[1736895552471,5.32,188.59,188.58,2.6523]
[1736895557577,7.86805129,188.61,188.6,2.652]
[1736895563586,13.18805129,188.65,188.62,2.6517]
[1736895563879,13.18805129,188.65,188.58,7.86805129]
[1736895564174,7.86805129,188.65,188.64,2.6513]
[1736895564381,7.86805129,188.67,188.6,7.86805129]
[1736895564884,7.86805129,188.67,188.66,2.6511]
[1736895565477,13.18805129,188.69,188.62,7.86805129]
[1736895565678,13.18805129,188.69,188.68,2.6509]
[1736895567180,5.32,188.69,188.68,2.6509]
[1736895567687,7.86805129,188.7,188.69,2.6507]
[1736895569287,5.34,188.73,188.64,7.86805129]
[1736895569486,5.34,188.73,188.72,2.6503]
[1736895569685,13.20805129,188.73,188.72,2.6503]
[1736895571393,5.32,188.76,188.74,2.65]
[1736895571692,7.86805129,188.75,188.74,2.65]
[1736895574390,5.32,188.78,188.76,2.6497]
[1736895574591,7.86805129,188.77,188.76,2.6497]
[1736895575596,7.86805129,188.79,188.77,2.6495]
[1736895576195,7.86805129,188.79,188.72,7.86805129]
[1736895577294,7.86805129,188.79,188.78,2.6495]
[1736895578195,5.32,188.84,188.81,2.6489]
[1736895578388,5.32,188.84,188.74,7.86805129]
[1736895578389,5.32,188.84,188.76,7.86805129]
[1736895578794,7.86805129,188.83,188.82,2.6489]
[1736895579296,5.32,188.84,188.83,2.6488]
[1736895579793,13.18805129,188.84,188.83,2.6488]
[1736895579992,7.86805129,188.84,188.83,2.6488]
[1736895581193,3.1933,188.94,188.8,7.86805129]
[1736895581194,5.34,188.89,188.8,7.86805129]
[1736895581398,7.86805129,188.87,188.8,7.86805129]
[1736895582395,7.86805129,188.87,188.86,2.6483]
[1736895585197,10.51635129,188.87,188.83,2.6487]
[1736895585403,7.86805129,188.84,188.79,56.14432875]
[1736895586206,7.86805129,188.84,188.82,2.6488]
[1736895587106,7.86805129,188.84,188.83,2.6488]
[1736895591306,7.86805129,188.84,188.78,1.5824]
[1736895591501,7.86805129,188.84,188.77,3.3023]
[1736895591806,7.86805129,188.82,188.77,1.6174]
[1736895592001,10.51705129,188.82,188.78,2.6494]
[1736895592301,7.86805129,188.82,188.75,7.86805129]
[1736895592507,7.86805129,188.8,188.75,7.86805129]
[1736895593504,7.86805129,188.8,188.73,7.86805129]
[1736895593709,10.51735129,188.8,188.76,2.6497]
[1736895594006,7.86805129,188.78,188.73,7.86805129]
[1736895594507,2.6496,188.77,188.74,2.65]
[1736895594708,13.20805129,188.76,188.69,11.07065129]
[1736895595105,7.86805129,188.74,188.72,2.6502]
[1736895595309,7.86805129,188.74,188.67,7.86805129]
[1736895595807,10.51815129,188.74,188.71,2.6504]
[1736895596109,10.51815129,188.74,188.64,1.6326]
[1736895596305,10.51815129,188.74,188.7,2.6505]
[1736895596509,7.86805129,188.74,188.69,7.86805129]
[1736895597705,13.20805129,188.76,188.69,7.86805129]
[1736895598011,13.20805129,188.76,188.71,7.86805129]
[1736895598209,13.20805129,188.76,188.75,2.6499]
[1736895598608,13.20805129,188.76,188.71,7.86805129]
[1736895598809,13.20805129,188.76,188.74,2.65]
[1736895600410,13.20805129,188.76,188.72,2.6502]
[1736895601212,15.85795129,188.76,188.72,2.6502]
[1736895601515,7.9899,188.76,188.68,7.86805129]
[1736895601712,2.65,188.74,188.71,2.6504]
[1736895602909,2.65,188.74,188.7,2.6505]
[1736895603310,2.65,188.74,188.67,7.86805129]
[1736895605212,2.65,188.74,188.71,2.6504]
[1736895607914,10.51795129,188.75,188.72,2.6503]
[1736895608419,13.20805129,188.77,188.67,7.86805129]
[1736895608613,15.85775129,188.77,188.69,7.86805129]
[1736895608920,13.20805129,188.77,188.69,7.86805129]
[1736895609417,7.86805129,188.79,188.71,7.86805129]
[1736895609814,7.86805129,188.79,188.77,2.6495]
[1736895610217,9.5473,188.8,188.77,2.6495]
[1736895610517,10.51725129,188.8,188.77,2.6495]
[1736895610919,7.86805129,188.8,188.73,7.86805129]
[1736895611518,5.34,188.81,188.75,7.86805129]
[1736895611716,7.86805129,188.82,188.75,7.86805129]
[1736895612019,7.86805129,188.84,188.82,2.6488]
[1736895612219,7.86805129,188.84,188.77,7.86805129]
[1736895612416,5.34,188.86,188.68,1.5641]
[1736895612624,7.86805129,188.88,188.87,2.6482]
[1736895613016,5.36,188.9,188.87,2.6482]
[1736895613216,7.86805129,188.88,188.87,2.6482]
[1736895613918,10.51615129,188.88,188.83,2.6487]
[1736895614123,7.86805129,188.86,188.83,2.6487]
[1736895614326,7.86805129,188.86,188.79,7.86805129]
[1736895615123,7.86805129,188.82,188.76,1.6835]
[1736895615325,10.51695129,188.82,188.78,2.6494]
[1736895615523,7.86805129,188.8,188.74,7.86805129]
[1736895617129,10.51725129,188.8,188.76,2.6496]
[1736895617326,2.6492,188.8,188.76,2.6496]
[1736895617529,2.6492,188.8,188.7,15.48764056]
[1736895620127,2.6492,188.8,188.76,2.6497]
[1736895623635,12.13084056,188.82,188.75,2.6499]
[1736895623833,12.13084056,188.79,188.7,3.3568]
[1736895625133,2.6496,188.77,188.74,2.65]
[1736895626034,2.6496,188.77,188.73,2.6501]
[1736895627932,12.13084056,188.79,188.71,2.6503]
[1736895627933,2.65,188.74,188.71,2.6503]
[1736895628232,17.49084056,188.76,188.67,57.55646953]
[1736895628631,12.13084056,188.73,188.67,57.55646953]
[1736895628831,12.13084056,188.73,188.63,1.5962]
[1736895629435,12.13084056,188.7,188.63,1.5962]
[1736895629838,2.6508,188.69,188.63,1.5962]
[1736895630039,12.13084056,188.7,188.63,1.5962]
[1736895630235,12.13084056,188.73,188.63,1.5962]
[1736895631336,14.78104056,188.73,188.63,1.5962]
[1736895631738,14.78104056,188.73,188.69,2.6507]
[1736895633040,2.6503,188.72,188.69,2.6507]
[1736895639146,12.13084056,188.73,188.66,2.6511]
[1736895639344,7.77350068,188.67,188.66,2.6511]
[1736895641248,7.77350068,188.67,188.63,2.6515]
[1736895641445,7.77350068,188.65,188.63,2.6515]
[1736895641846,7.77350068,188.65,188.6,1.6192]
[1736895642148,7.77350068,188.65,188.58,59.23697668]
[1736895642348,7.77350068,188.63,188.58,59.23697668]
[1736895642546,7.77350068,188.63,188.58,57.57957668]
[1736895642953,10.42540068,188.61,188.58,60.23177668]
[1736895643153,7.77350068,188.59,188.58,57.57957668]
[1736895644250,10.42560068,188.59,188.58,57.57957668]
[1736895644441,7.77350068,188.59,188.56,7.96642536]
[1736895645352,17.49732403,188.61,188.57,2.6524]
[1736895645853,17.49732403,188.61,188.56,5.31392536]
[1736895646056,2.652,188.6,188.56,7.96632536]
[1736895646354,17.49732403,188.61,188.56,5.31392536]
[1736895647051,20.14922403,188.61,188.57,2.6524]
[1736895648155,20.14922403,188.61,188.58,2.6523]
[1736895648945,5.34,188.61,188.59,2.652]
[1736895649151,12.15732403,188.64,188.56,5.31392536]
[1736895649355,17.49732403,188.64,188.56,5.31392536]
[1736895649554,17.49732403,188.64,188.62,2.6516]
[1736895654760,20.14882403,188.64,188.61,2.6518]
[1736895656464,20.14882403,188.64,188.56,5.31392536]
[1736895656465,17.49732403,188.64,188.56,5.31392536]
[1736895656657,17.49732403,188.64,188.59,2.652]
[1736895657463,2.6517,188.62,188.59,2.652]
[1736895658762,2.6519,188.61,188.58,2.6522]
[1736895658966,17.49732403,188.64,188.56,5.31392536]
[1736895659659,2.6521,188.6,188.56,7.96632536]
[1736895659959,2.6521,188.6,188.56,5.31392536]
[1736895661264,2.6521,188.6,188.57,2.6523]
[1736895661860,2.6517,188.62,188.6,2.652]
[1736895662362,17.49732403,188.64,188.56,5.31392536]
[1736895662659,12.15732403,188.67,188.56,17.47124939]
[1736895662867,17.49732403,188.67,188.57,3.3889]
[1736895663561,12.15732403,188.67,188.57,3.3889]
[1736895663761,17.49732403,188.67,188.57,3.3889]
[1736895665067,17.49732403,188.67,188.64,2.6513]
[1736895665468,7.77481151,188.66,188.64,2.6513]
[1736895667366,7.77481151,188.66,188.6,7.77481151]
[1736895667764,7.77481151,188.66,188.58,7.77481151]
[1736895667969,7.77481151,188.64,188.58,7.77481151]
[1736895668467,7.77481151,188.64,188.63,2.6515]
[1736895668674,7.77481151,188.64,188.57,11.16371151]
[1736895668872,7.77481151,188.64,188.63,2.6516]
[1736895689985,7.991,188.67,188.65,2.6512]
[1736895690285,7.77481151,188.66,188.65,2.6512]
[1736895691084,2.6506,188.71,188.68,2.6508]
[1736895691282,196.6309,188.73,188.61,7.77481151]
[1736895691585,7.77481151,188.7,188.69,2.6507]
[1736895693386,10.42551151,188.7,188.67,2.6509]
[1736895693586,7.77481151,188.68,188.67,2.6509]
[1736895694088,7.77481151,188.68,188.64,3.1923]
[1736895694290,7.77481151,188.68,188.66,2.6511]
[1736895694591,7.77481151,188.68,188.64,1.5644]
[1736895694785,7.77481151,188.68,188.67,2.651]